Cogmind - Beta 13 @@@ ROGUE MODE // 2024.04.01 @ 15:17:23 Player: Mr_box Result: Self-destructed Performance ------------- Evolutions (2) 1000 Regions Visited (4) 800 Robots Destroyed (25) 125 Value Destroyed (794) 794 Prototype IDs (4) 80 Alien Tech Used (0) 0 Bonus (200) 200 TOTAL SCORE: 2999 Bonus ------- Entered Garrisons 200 Cogmind --------- Core Integrity 521/550 Matter 240/300 Energy 280/280 System Corruption 0% Temperature Cool (0) Movement Treading (240) Ox1 Location -8/Garrison Parts ------- > --- POWER (1) -------- Heavy Ion Engine > --- PROPULSION (3) --- Light Treads > --- UTILITY (5) ------ Heat Sink Improved Heat Sink Large Storage Unit Weapon Shielding Light Armor Plating > --- WEAPON (2) ------- Particle Gun Enhanced Autogun > --- INVENTORY (15) --- Improved Ion Engine Improved Ion Engine Improved Ion Engine High-capacity Battery (250) Medium Laser Medium Laser Medium Laser Medium Laser Medium Laser Heavy Assault Rifle Peak State ------------ > --- POWER ------------ Heavy Ion Engine > --- PROPULSION ------- Light Treads Light Treads Light Treads > --- UTILITY ---------- Heat Sink Improved Heat Sink Large Storage Unit Light Armor Plating Light Armor Plating > --- WEAPON ----------- Particle Gun Enhanced Autogun > --- INVENTORY -------- Improved Ion Engine Improved Ion Engine Improved Ion Engine High-capacity Battery Weapon Shielding Medium Laser Medium Laser Medium Laser Medium Laser Medium Laser Heavy Assault Rifle [Rating: 20] Favorites ----------- Power Ion Engine Engine Ion Engine Propulsion Aluminum Leg Treads Light Treads Leg Aluminum Leg Utility Weapon Shielding Device Improved Heat Sink Storage Small Storage Unit Protection Weapon Shielding Weapon Medium Laser Energy Gun Medium Laser Ballistic Gun Assault Rifle Build | -11 -10 -9 -8 -8 ------- Run | Yrd Mat Mat Mat Gar Slots Evolved 4 | . . 2 2 . Power . | . . . . . Propulsion 1 | . . . 1 . Utility 3 | . . 2 1 . Weapon . | . . . . . Parts Attached 42 | 4 9 20 8 1 Power 6 | 1 1 3 1 . Engine 6 | 1 1 3 1 . Core . | . . . . . Reactor . | . . . . . Propulsion 13 | 2 4 6 1 . Treads 6 | . 2 3 1 . Leg 7 | 2 2 3 . . Wheel . | . . . . . Hover . | . . . . . Flight . | . . . . . Utility 14 | 1 1 8 3 1 Device 5 | . . 4 1 . Storage 4 | 1 . 2 1 . Processor . | . . . . . Hackware . | . . . . . Protection 5 | . 1 2 1 1 Artifact . | . . . . . Weapon 9 | . 3 3 3 . Energy Gun 4 | . 1 2 1 . Energy Cannon . | . . . . . Ballistic Gun 5 | . 2 1 2 . Ballistic Cannon . | . . . . . Launcher . | . . . . . Special Weapon . | . . . . . Impact Weapon . | . . . . . Slashing Weapon . | . . . . . Piercing Weapon . | . . . . . Special Melee Weapon . | . . . . . Unidentified Prototypes 2 | . . 1 1 . Parts Lost 9 | . 1 3 3 2 Power 2 | . 1 . 1 . Propulsion 2 | . . 1 . 1 Utility 4 | . . 2 1 1 Weapon 1 | . . . 1 . Highest Loss Streak 3 | . 1 2 3 2 To Critical Strikes . | . . . . . Average Slot Usage (%) 96 | . 97 97 85 98 Engine 11 | . 14 11 8 9 Treads 11 | . 18 1 22 25 Leg 12 | . 9 19 . . Device 7 | . . 9 12 18 Storage 16 | . 14 20 9 9 Protection 13 | . 11 12 15 18 Energy Gun 14 | . 14 15 12 9 Ballistic Gun 8 | . 14 6 5 9 Naked Turns . | . . . . . Heaviest Build 42 | 10 15 37 42 42 Greatest Support 60 | 20 40 40 60 60 Greatest Overweight (x) 2 | . . 2 . . Average Overweight (x) . | . . . . . Largest Inventory Capacity 15 | 8 8 15 15 15 Average Capacity 9 | 6 8 8 15 15 Most Carried 13 | 6 8 9 13 11 Average Carried 7 | 4 6 7 9 10 Final Capacity 15 | 8 8 15 15 15 Final Carried 11 | 6 7 9 11 10 Class Distribution -------------------- 60% | Mutant 39% | Scavenger-Mutant Dominant Class ---------------- Mutant | -10/Materials Mutant | -9/Materials Scavenger-Mutant | -8/Materials Scavenger-Mutant | -8/Garrison Resources | -11 -10 -9 -8 -8 ----------- Run | Yrd Mat Mat Mat Gar Matter Collected 766 | 189 286 240 51 . Remotely . | . . . . . Salvage Created 867 | . 241 429 197 . Parts 52 | . 14 30 8 . Haulers Intercepted . | . . . . . Recyclers Shooed . | . . . . . Parts Field Recycled . | . . . . . Retrieved Matter . | . . . . . Parts Self-Destructed . | . . . . . Prevented . | . . . . . Kills | -11 -10 -9 -8 -8 ------- Run | Yrd Mat Mat Mat Gar Combat Hostiles Destroyed 23 | . 7 12 4 . Guns 23 | . 7 12 4 . Classes Destroyed 5 | . 3 2 . . Worker 1 | . . 1 . . Watcher 1 | . 1 . . . Swarmer 6 | . 3 3 . . Grunt 13 | . 4 6 3 . Sentry 4 | . . 3 1 . Best Kill Streak 4 | . 4 4 2 . Combat Bots Only 4 | . 4 4 2 . Max Kills in Single Turn 1 | . 1 1 1 . Gunslinging . | . . . . . Exploded . | . . . . . Melee . | . . . . . Uniques/NPCs Destroyed . | . . . . . Combat | -11 -10 -9 -8 -8 -------- Run | Yrd Mat Mat Mat Gar Hostile Shots Fired 188 | . 43 90 28 27 Missed 46 | . 7 24 8 7 Damage Taken 1668 | . 373 659 319 317 Core 212 | . 58 125 14 15 Absorbed by Shields 114 | . . 114 . . Redirected to Shielding 117 | . 28 40 35 14 Core Remaining (%) 81 | 100 76 68 . . Volleys Fired 86 | . 18 46 17 5 Largest 2 | . 2 2 2 2 Hottest 106 | . 70 106 106 90 Shots Fired 171 | . 36 91 34 10 Gun 171 | . 36 91 34 10 Cannon . | . . . . . Launcher . | . . . . . Special . | . . . . . Kinetic 45 | . 18 19 3 5 Thermal 126 | . 18 72 31 5 Explosive . | . . . . . Electromagnetic . | . . . . . Robot Hit Streak 8 | . 5 6 8 4 Robot Miss Streak 5 | . 5 5 3 1 Penetration Max . | . . . . . Secondary Targets 3 | . 1 1 1 . Max Gunslinging Chain 1 | . 1 1 1 . Shots Hit Robots 103 | . 21 52 24 6 Core Hits 47 | . 14 21 11 1 Critical Kills . | . . . . . Critical Parts Destroyed . | . . . . . Critical Strikes 7 | . 2 4 1 . Burn 7 | . 2 4 1 . Melee Attacks . | . . . . . Impact . | . . . . . Slashing . | . . . . . Piercing . | . . . . . Sneak Attacks . | . . . . . Combat Hostiles . | . . . . . Follow-up Attacks . | . . . . . Damage Inflicted 1328 | . 301 588 334 105 Guns 1320 | . 301 580 334 105 Cannons . | . . . . . Explosions . | . . . . . Melee . | . . . . . Ramming 8 | . . 8 . . Kinetic 425 | . 176 136 43 70 Thermal 895 | . 125 444 291 35 Explosive . | . . . . . Electromagnetic . | . . . . . Impact . | . . . . . Slashing . | . . . . . Piercing . | . . . . . Highest Corruption . | . . . . . Average Corruption . | . . . . . Corruption Purged . | . . . . . Corruption Blocked . | . . . . . Overload Shots . | . . . . . Overflow Damage . | . . . . . Projectiles . | . . . . . Explosions . | . . . . . Melee . | . . . . . Knockbacks . | . . . . . Impact . | . . . . . Kinetic . | . . . . . Secondary . | . . . . . Self-Inflicted Damage . | . . . . . Shots . | . . . . . Rammed 1 | . 1 . . . Targets Rammed 3 | . 1 2 . . Kicked 2 | . . 2 . . Crushed . | . . . . . Highest Temperature 307 | . 130 307 47 25 Average Temperature 56 | . 47 72 21 11 Received Heat Transfer 735 | . 132 234 198 171 Siege Activations . | . . . . . Robots Corrupted . | . . . . . Combat Hostiles . | . . . . . Parts Fried . | . . . . . Impact Corruptions . | . . . . . Robots Melted . | . . . . . Combat Hostiles . | . . . . . Parts Melted 7 | . 2 3 2 . Heat Transferred 3035 | . 518 1555 888 74 Parts Sabotaged . | . . . . . Parts Stolen . | . . . . . Parts Stripped . | . . . . . Power Chain Reactions . | . . . . . Alert | -11 -10 -9 -8 -8 ------- Run | Yrd Mat Mat Mat Gar Peak Influence 243 | . 212 243 191 124 Initial 124 | . . 89 102 124 Average 118 | . 105 121 166 121 Maximum Alert Level 1 | . 1 1 . . Low Security (%) 87 | 100 79 85 100 100 Level 1 12 | . 20 14 . . Level 2 . | . . . . . Level 3 . | . . . . . Level 4 . | . . . . . Level 5 . | . . . . . High Security . | . . . . . Max Security . | . . . . . Squads Dispatched 4 | . . 3 1 . Investigation 1 | . . 1 . . Extermination . | . . . . . Reinforcement 3 | . . 2 1 . Assault . | . . . . . Garrison . | . . . . . Intercept . | . . . . . Searches Triggered . | . . . . . Construction Impeded 1 | . . 1 . . Haulers Reinforced . | . . . . . Active Scanning Responses . | . . . . . Cargo Convoy Interrupts . | . . . . . Stealth | -11 -10 -9 -8 -8 --------- Run | Yrd Mat Mat Mat Gar Distress Signals 1 | . 1 . . . Communications Jammed . | . . . . . Distress Signals . | . . . . . Times Spotted 35 | . 9 15 5 6 Peak Tracking Total 6 | . 4 5 4 6 Tactical Retreats 1 | . 1 . . . Traps | -11 -10 -9 -8 -8 ------- Run | Yrd Mat Mat Mat Gar Traps Triggered . | . . . . . Indirectly . | . . . . . Trap Hack Attempts . | . . . . . Triggered . | . . . . . Disarmed . | . . . . . Reprogrammed . | . . . . . Reused . | . . . . . Traps Extracted . | . . . . . Installed . | . . . . . Triggered . | . . . . . Machines | -11 -10 -9 -8 -8 ---------- Run | Yrd Mat Mat Mat Gar Machines Disabled 4 | . 1 3 . . Max in Single Turn 2 | . 1 2 . . Machines Repaired . | . . . . . Machines Dismantled . | . . . . . Machines Sabotaged . | . . . . . Overloaded Fab Kills . | . . . . . Hacking | -11 -10 -9 -8 -8 --------- Run | Yrd Mat Mat Mat Gar Machines Accessed 5 | . 1 3 1 . Terminals 2 | . 1 1 . . Fabricators . | . . . . . Repair Stations . | . . . . . Recycling Units 1 | . . 1 . . Scanalyzers 1 | . . 1 . . Garrison Access 1 | . . . 1 . Total Hacks 15 | . 5 9 1 . Successful 8 | . . 7 1 . Failed 7 | . 5 2 . . Catastrophic 1 | . 1 . . . Database Lockouts . | . . . . . Manual . | . . . . . Terminals 10 | . 5 5 . . Fabricators . | . . . . . Repair Stations . | . . . . . Recycling Units 1 | . . 1 . . Scanalyzers 3 | . . 3 . . Garrison Access 1 | . . . 1 . Terminal Hacks 4 | . . 4 . . Prototype ID Bank 1 | . . 1 . . Alert Level 2 | . . 2 . . Unreport Threat 1 | . . 1 . . Fabricator Hacks . | . . . . . Repair Station Hacks . | . . . . . Recycling Unit Hacks 1 | . . 1 . . Report Inventory 1 | . . 1 . . Scanalyzer 2 | . . 2 . . Insert Component 1 | . . 1 . . Analyze 1 | . . 1 . . Garrison Access Hacks 1 | . . . 1 . Unlock Access 1 | . . . 1 . Unauthorized Hacks . | . . . . . Terminals . | . . . . . Fabricators . | . . . . . Repair Stations . | . . . . . Recycling Units . | . . . . . Scanalyzers . | . . . . . Garrison Access . | . . . . . Data Cores Recovered . | . . . . . Used . | . . . . . Hacking Detections 3 | . 1 2 . . Full Trace Events 1 | . . 1 . . Feedback Events . | . . . . . Feedback Blocked . | . . . . . Robot Schematics Acquired . | . . . . . Robots Built . | . . . . . Authchips . | . . . . . Time . | . . . . . Total Robot Build Rating . | . . . . . Part Schematics Acquired 1 | . . 1 . . Parts Built . | . . . . . Authchips . | . . . . . Time . | . . . . . Total Part Build Rating . | . . . . . Parts Repaired . | . . . . . Time . | . . . . . Parts Recycled . | . . . . . Recycled Matter . | . . . . . Retrieved Matter . | . . . . . Retrieved Components . | . . . . . Parts Scanalyzed 1 | . . 1 . . Part Schematics Acquired 1 | . . 1 . . Parts Damaged . | . . . . . Bothacking | -11 -10 -9 -8 -8 ------------ Run | Yrd Mat Mat Mat Gar Used RIF Installer . | . . . . . Robots Hacked . | . . . . . Non-combat . | . . . . . Combat . | . . . . . Robot Hacks Applied . | . . . . . Relay Couplers Released . | . . . . . Fabnet Peak Effective % . | . . . . . Robots Rewired . | . . . . . Allies Hacked . | . . . . . Hacks Repelled . | . . . . . Allies | -11 -10 -9 -8 -8 -------- Run | Yrd Mat Mat Mat Gar Total Allies . | . . . . . Largest Group . | . . . . . Highest-Rated Group . | . . . . . Highest-Rated Ally . | . . . . . Total Orders . | . . . . . Ally Attacks . | . . . . . Total Damage . | . . . . . Kills . | . . . . . Allies Corrupted . | . . . . . Allies Melted . | . . . . . Intel | -11 -10 -9 -8 -8 ------- Run | Yrd Mat Mat Mat Gar Robot Analysis Total . | . . . . . Derelict Logs Recovered . | . . . . . Drone Launches . | . . . . . Drone Recoveries . | . . . . . Exploration | -11 -10 -9 -8 -8 ------------- Run | Yrd Mat Mat Mat Gar Turns Passed 1479 | 66 385 711 216 101 Spaces Moved 709 | 49 202 313 91 54 Core 8 | 8 . . . . Treads 285 | . 109 31 91 54 Legs 416 | 41 93 282 . . Wheels . | . . . . . Hover . | . . . . . Flight . | . . . . . Fastest Speed 50 | 50 120 120 160 160 Average Speed 154 | 108 141 166 160 160 Slowest Speed 260 | 120 160 260 160 160 Overloaded Moves . | . . . . . Propulsion Burnouts . | . . . . . Robots Hopped . | . . . . . Cave-ins Triggered . | . . . . . Exploration Rate (%) 23 | 4 56 25 8 22 Regions Visited 4 Branch Regions . Pre-discovered Areas . | . . . . . Known Exits Taken 1 | . . . 1 . Unknown Exits Taken 3 | 1 1 1 . . Scrap Searched . | . . . . . Spaces Dug . | . . . . . Terrain Destroyed 30 | . . 30 . . Melee . | . . . . . Projectile . | . . . . . AOE 30 | . . 30 . . Terrain Rammed . | . . . . . Walls Destroyed . | . . . . . Machines Disabled . | . . . . . Actions | -11 -10 -9 -8 -8 --------- Run | Yrd Mat Mat Mat Gar Total 924 | 62 263 411 128 60 Wait 23 | . 23 . . . Move 705 | 48 201 312 90 54 Hop . | . . . . . Pick Up 45 | 10 8 17 10 . Fast Attach 1 | . . 1 . . Attach 21 | 4 4 6 6 1 Detach 1 | . . 1 . . Swap 20 | . 5 13 2 . Drop 19 | . 3 13 3 . Fire 86 | . 18 46 17 5 Melee . | . . . . . Ram . | . . . . . Kick 2 | . . 2 . . Crush 1 | . 1 . . . Escape Stasis . | . . . . . Rewire . | . . . . . Trap . | . . . . . Miscellaneous . | . . . . . Route ------- -11/Scrapyard -10/Materials (discovered 3 exits: *Mat / [*Min x2]) -9/Materials -8/Materials -8/Garrison History --------- Turn | Location | Event 3 | -11/Scrapyard | Discovered new exit (range 15) 67 | -11/Scrapyard | Entered Materials 74 | -10/Materials | Discovered new exit (range 8) 223 | -10/Materials | Discovered new exit (range 8) 316 | -10/Materials | Build established: Mutant 386 | -10/Materials | Discovered new exit (range 15) 452 | -10/Materials | Entered another Materials area 452 | -9/Materials | Evolved 2 slots: Utility x2 1143 | -9/Materials | Discovered new exit (range 5) 1163 | -9/Materials | Entered another Materials area 1163 | -8/Materials | Evolved 2 slots: Propulsion x1, Utility x1 1192 | -8/Materials | Build established: Scavenger-Mutant 1286 | -8/Materials | Lost 3 parts (1p1u1w) 1343 | -8/Materials | Identified exit to Garrison 1379 | -8/Materials | Entered Garrison 1456 | -8/Garrison | Triggered checkpoint 1480 | -8/Garrison | Self-destructed Last Messages --------------- Acquired Imp. Ion Engine. Acquired Lgt. Armor Plating. Acquired Med. Laser. Dropped Med. Laser. K-01 Serf collects debris. Connecting with Garrison Access... Current location identified: Materials >>Unlock Access door unlocked. EXIT=UNLOCKED: GARRISON Acquired Prototype Ballistic Gun. Identified Enh. Autogun. LOCATION=GARRISON GOAL=ESCAPE Beams of light sweep through the air. An alarm sounds. Lgt. Armor Plating destroyed. Lgt. Treads destroyed. Critical hit (Burn: +37). Lgt. Treads severed. Map ----- +----------------------------------------------------+ | ????????????????????????????# #?????????????????? | | ????????????????????????????# #?????????????????? | | ????????????????????????????# #?????????????????? | | ????????????????????????????# #?????????????????? | | ?????????????????############ #?????????????????? | | ?????????????????# #?????????????????? | | ?????????????????# ^ #?????????????????? | | ?????????????????# ######### #?????????????????? | | ?????????????????# ????????# #?????????????????? | | ?????????????????# ????????# #########?????????? | | ?????????????????# ????????# ??? | | ?????????????????# ????????# #########?????????? | | ?????????????????# ????????# #?????????????????? | | ??????## ##""""## ##??????# #?????????????????? | | ??????# ######## #?????????????????? | | ?????? #?????????????????? | | ?????? #?????????????????? | | ??????? ???# ## ###########?????????????????? | | ??????# ## ## ##??????????????????????????? | | ??????" ???????????????????????????? | | ??????" ???????????????????????????? | | ??????" ???????????????????????????? | | ??????" ???????????????????????????? | | ??????# ## ## #???????????????????????????? | | ??????# ## ##g ############????????????????? | | ????? g c@ #????????????????? | | ????? g c #????????????????? | | ??????# c #????????????????? | | ??????######""""########+#### #????????????????? | | ?????????????????????????????? #????????????????? | | ??????????????????????????????? #????????????????? | | ????????????????????????????????#????????????????? | | ?????????????????????????????????????????????????? | | ?????????????????????????????????????????????????? | | ?????????????????????????????????????????????????? | | ?????????????????????????????????????????????????? | | ?????????????????????????????????????????????????? | | ?????????????????????????????????????????????????? | | ?????????????????????????????????????????????????? | | ?????????????????????????????????????????????????? | | ?????????????????????????????????????????????????? | | ?????????????????????????????????????????????????? | | ?????????????????????????????????????????????????? | | ?????????????????????????????????????????????????? | | ?????????????????????????????????????????????????? | | ?????????????????????????????????????????????????? | | ?????????????????????????????????????????????????? | | ?????????????????????????????????????????????????? | | ?????????????????????????????????????????????????? | | ?????????????????????????????????????????????????? | +----------------------------------------------------+ Best States ------------- Heat Dissipation 55 Energy Generation 14 Energy Capacity 515 Matter Stores 300 Matter Capacity 300 Sight Range 16 Terrain Scan Density 10 Armor Coverage 300 Weapon Shielding 33 Evasion (%) 55 Recoil Reduction 3 Item Schematics ----------------- Imp. Heat Sink | -9/Materials | Scanalyzed Robot Schematics ------------------ None Fabricated ------------ Nothing Alien Tech Used ----------------- None Achievements -------------- None Challenges ------------ None Game ------ Seed CannonGravitySuite Manual? 0 Play Time 00:26:55 Cumulative 6.3 hours Start 2024.04.01 @ 14:51:39 End 2024.04.01 @ 15:17:23 Sessions 1 Manual Loads 0 Difficulty Rogue Special Mode None Game No. 9 Rogue 9 Adventurer 0 Explorer 0 Win Type - Total 0 Types 0/0/0/0/0/0/0/0/0 Lore% 3 Gallery% 11 Achievement% 8 Wizard Run 0 Options --------- Layout 1 ASCII 0 Keyboard 0 Movement Mouse Keybinds 0 Fullscreen 1 Font 24/Smallcaps Map View 50x35 Zoom Use 0% Tactical HUD 0 Map Filters NONE Filters NONE Steam 1 RUN: 22208c8d-4d6b-41f9-84f4-67ca38783b37